bitfinex-derivatives/quotes_ETHF0:USTF0_20250903
["timestamp","ask_amount","ask_price","bid_price","bid_amount"]
[1756871414092,0.8255,4331.5,4331.4,3.8574]
[1756871415705,0.8255,4331.5,4331.4,4.1617]
[1756871416407,1.21813099,4332.0,4331.5,0.3043]
[1756871416408,0.302,4331.8,4331.5,0.3043]
[1756871416601,0.302,4332.0,4331.9,0.4204]
[1756871416802,0.6259,4332.5,4332.4,0.7247]
[1756871417299,1.23995177,4332.5,4332.4,0.7247]
[1756871417702,0.6259,4332.5,4332.4,0.7247]
[1756871418504,0.5029,4332.5,4332.4,1.81983099]
[1756871418903,0.5029,4332.5,4332.4,0.7247]
[1756871419208,0.8373,4332.5,4332.4,0.4204]
[1756871421409,0.8373,4332.5,4332.4,0.2136]
[1756871421608,1.93243099,4332.5,4332.2,0.234]
[1756871422210,0.7146,4332.4,4332.3,0.2136]
[1756871422410,0.5029,4332.4,4332.3,0.7247]
[1756871422611,0.7146,4332.4,4332.3,0.2136]
[1756871423006,0.7146,4332.4,4332.3,0.7247]
[1756871423204,0.5029,4332.4,4332.3,0.7247]
[1756871424211,0.302,4332.4,4332.3,0.7247]
[1756871427713,0.123,4333.0,4332.3,0.7247]
[1756871427714,0.302,4332.9,4332.4,0.3041]
[1756871427914,0.2009,4332.6,4332.5,5.26143099]
[1756871428108,0.5029,4332.6,4332.5,5.26143099]
[1756871428308,0.5029,4332.6,4332.5,46.06143099]
[1756871429217,0.302,4332.6,4332.5,46.06143099]
[1756871431211,0.302,4332.9,4332.5,45.81733099]
[1756871431415,0.7146,4333.4,4333.3,0.2136]
[1756871431615,1.32746011,4333.4,4333.3,0.2136]
[1756871432217,1.32746011,4333.4,4333.1,1.09513099]
[1756871432411,0.302,4333.3,4333.0,0.5381]
[1756871432616,1.21783099,4333.5,4333.0,0.9585]
[1756871432617,0.5029,4333.1,4333.0,0.9585]
[1756871437519,0.7146,4333.1,4333.0,0.7245]
[1756871437720,1.21783099,4333.5,4332.5,44.0678]
[1756871437721,0.7146,4332.6,4332.5,44.0078]
[1756871438717,0.7146,4332.6,4332.5,3.4214]
[1756871439018,0.7146,4332.6,4332.5,3.6282]
[1756871440513,0.7146,4332.6,4332.5,5.02743099]
[1756871441221,0.302,4332.6,4332.5,5.02743099]
[1756871441522,0.1227,4333.0,4332.5,5.02743099]
[1756871441523,0.3027,4332.9,4332.8,0.7023]
[1756871441720,0.3027,4332.9,4332.8,2.03143099]
[1756871445525,0.3027,4332.9,4332.8,2.27241934]
[1756871445926,0.5154,4332.9,4332.8,2.27241934]
[1756871446126,0.5154,4332.9,4332.8,0.6378]
[1756871446127,0.7209,4332.9,4332.8,0.6378]
[1756871446928,0.7209,4332.9,4332.8,0.4038]
[1756871447625,0.7209,4332.9,4332.8,0.7023]
[1756871448124,0.7209,4332.9,4332.8,2.03841934]
[1756871450628,0.5154,4332.9,4332.8,2.03841934]
[1756871453124,0.3027,4332.9,4332.8,2.03841934]
[1756871453529,0.5154,4332.9,4332.8,2.03841934]
[1756871454228,0.3027,4332.8,4332.5,3.2078]
[1756871454529,0.7209,4332.7,4332.6,0.436]
[1756871454730,0.5154,4332.7,4332.6,41.7363]
[1756871455131,0.5154,4332.7,4332.6,0.9363]
[1756871462635,0.3027,4332.9,4332.8,0.4038]
[1756871462932,0.234,4333.9,4332.8,0.4038]
[1756871462933,0.1227,4334.0,4332.8,1.97391934]
[1756871463235,0.8436,4334.0,4333.9,0.202]
[1756871463529,1.45834817,4334.0,4333.9,0.202]
[1756871464331,0.7209,4333.7,4333.6,42.37011934]
[1756871464529,1.33564817,4333.7,4333.6,42.37011934]
[1756871464730,1.33564817,4333.7,4333.6,40.8]
[1756871465129,0.7209,4333.4,4333.3,3.2078]
[1756871465335,0.4182,4332.9,4332.8,3.2078]
[1756871465527,0.4182,4332.9,4332.8,3.4418]
[1756871465528,0.7209,4332.9,4332.8,3.4418]
[1756871465728,0.4182,4332.9,4332.4,1.33611934]
[1756871465928,0.1269,4333.0,4332.7,0.234]
[1756871465929,0.7209,4332.8,4332.7,0.234]
[1756871466136,0.7209,4332.8,4332.7,0.436]
[1756871468633,0.1269,4332.5,4332.3,3.2078]
[1756871468845,0.7209,4332.4,4332.3,3.6116]
[1756871469137,0.7209,4332.4,4332.3,3.8456]
[1756871469334,0.7209,4332.4,4332.3,4.1441]
[1756871470032,0.7209,4332.4,4332.3,5.48021934]
[1756871470232,0.5154,4332.4,4332.3,5.48021934]
[1756871470629,0.1269,4333.0,4332.3,5.48021934]
[1756871470845,0.1269,4333.0,4332.9,0.4038]
[1756871470846,0.5451,4333.0,4332.9,0.4038]
[1756871471448,0.1269,4333.5,4332.9,2.27821934]
[1756871471631,0.61384847,4333.4,4333.0,0.3043]
[1756871471940,0.61384847,4333.4,4332.9,1.57011934]
[1756871471941,0.4841,4333.4,4333.3,0.7193]
[1756871472138,0.2889,4333.4,4333.3,0.7193]
[1756871472339,0.1952,4333.4,4333.3,2.05541934]
[1756871472541,0.4841,4333.4,4333.3,2.05541934]
[1756871472842,0.4841,4333.4,4333.3,5.26321934]
[1756871474144,0.4841,4333.4,4333.3,5.49721934]
[1756871476444,0.1227,4334.0,4333.3,5.49721934]
[1756871476747,0.80556557,4333.9,4333.8,0.7193]
[1756871476945,1.01236557,4333.9,4333.8,0.415]
[1756871477140,1.30126557,4333.9,4333.8,0.415]
[1756871479152,1.30126557,4333.9,4333.8,0.7193]
[1756871479348,0.4841,4333.9,4333.8,0.7193]
[1756871479543,0.6909,4333.9,4333.8,0.415]
[1756871479744,0.6909,4333.9,4333.8,0.7193]
[1756871480351,0.6909,4333.9,4333.8,0.2057]
[1756871480754,0.6909,4333.9,4333.8,0.415]
[1756871480947,0.4841,4333.9,4333.8,0.7193]
[1756871481141,0.2889,4334.4,4333.8,0.415]
[1756871481348,0.2889,4334.4,4334.3,4.84821934]
[1756871481547,0.2889,4334.4,4334.3,5.49721934]
[1756871481848,0.1243,4335.0,4334.9,0.7193]
[1756871482054,3.6098,4335.3,4335.2,0.415]
[1756871482246,0.402,4335.3,4335.2,0.415]
[1756871482446,3.5661,4336.0,4335.2,0.415]
[1756871482447,0.1952,4335.4,4335.3,0.3043]
[1756871482647,0.6909,4335.4,4335.3,0.415]
[1756871483052,0.6909,4335.4,4335.3,0.649]
[1756871483451,0.6909,4335.4,4335.3,0.9533]
[1756871485055,0.6909,4335.4,4335.3,0.7193]
[1756871485257,0.6909,4335.4,4335.3,0.9533]
[1756871485453,0.6909,4335.4,4335.3,0.7193]
[1756871485748,0.4841,4335.4,4335.3,4.1611]
[1756871486153,0.2889,4335.9,4335.8,0.7193]
[1756871486456,0.4841,4335.9,4335.8,2.05541934]
[1756871487160,0.6909,4335.9,4335.8,1.75111934]
[1756871487354,0.2889,4336.4,4335.8,4.95891934]
[1756871487554,0.6909,4336.4,4336.3,1.75111934]
[1756871489858,0.6909,4336.4,4335.8,3.2078]
[1756871490055,0.4132,4336.0,4335.9,0.2057]
[1756871490357,0.8152,4336.0,4335.9,0.4387]
[1756871490559,0.8152,4336.0,4335.9,0.648]
[1756871491149,0.3195,4336.5,4336.4,0.415]
[1756871491454,0.1952,4336.5,4336.4,2.05541934]
[1756871491862,0.4841,4336.5,4336.4,2.05541934]
[1756871492268,0.6084,4336.5,4336.4,2.05541934]
[1756871493365,0.3195,4337.0,4336.9,0.415]
[1756871493676,0.6084,4337.0,4336.9,2.05541934]
[1756871494171,0.2889,4337.0,4336.9,2.05541934]
[1756871494470,0.6909,4337.4,4337.3,0.2057]
[1756871494676,0.6909,4337.4,4337.3,1.54181934]
[1756871494974,0.6909,4337.4,4337.3,1.75111934]
[1756871496068,0.6909,4337.4,4337.0,0.3043]
[1756871496069,0.6909,4336.7,4336.4,1.33611934]
[1756871496276,0.8152,4336.5,4336.4,1.75111934]
[1756871496469,0.8152,4336.5,4336.4,2.28841934]
[1756871496669,0.8152,4336.5,4336.4,43.08841934]
[1756871497168,0.8152,4336.5,4336.4,2.28841934]
[1756871497363,0.8152,4336.5,4336.4,1.98411934]
[1756871498270,0.8152,4336.5,4336.4,1.75111934]
[1756871498574,0.2889,4336.4,4336.3,40.8]
[1756871498774,0.2889,4336.4,4336.3,41.033]
[1756871499374,0.6909,4336.4,4336.3,0.4387]
[1756871499872,0.2889,4336.3,4336.2,3.4408]
[1756871500074,0.6909,4336.3,4336.2,5.19191934]
[1756871500269,0.6909,4336.3,4336.2,5.49621934]
[1756871500874,0.2889,4336.3,4336.2,5.49621934]
[1756871501279,0.4841,4336.3,4336.2,5.49621934]
[1756871503474,3.3321,4337.0,4336.4,0.4261]
[1756871503676,3.7389,4337.0,4336.9,1.76221934]
[1756871503973,3.7389,4337.0,4336.9,2.06651934]
[1756871504174,4.0561,4337.0,4336.9,2.06651934]
[1756871504380,4.0561,4337.0,4336.9,1.76221934]
[1756871505274,0.8483,4337.0,4336.9,2.06651934]
[1756871505678,0.8483,4337.0,4336.9,1.76221934]
[1756871505874,0.8483,4337.0,4336.9,1.33611934]
[1756871506072,0.3172,4336.9,4336.8,0.233]
[1756871506273,0.724,4336.9,4336.8,0.233]
[1756871506472,0.724,4336.9,4336.8,0.4465]
[1756871506874,0.724,4336.9,4336.8,0.233]
[1756871507680,0.724,4336.9,4336.8,1.30554048]
[1756871508068,0.4068,4336.9,4336.7,1.09204048]
[1756871508272,0.3172,4336.8,4336.7,1.09204048]
[1756871508474,0.724,4336.8,4336.7,1.09204048]
[1756871508775,0.724,4336.8,4336.7,1.30554048]
[1756871508975,0.724,4336.8,4336.7,1.51814048]
[1756871509287,0.724,4336.8,4336.7,1.82244048]
[1756871509474,0.4415,4337.0,4336.7,1.51814048]
[1756871509675,3.3321,4337.5,4336.9,0.4261]
[1756871509876,0.2023,4337.0,4336.9,0.7304]
[1756871510175,0.2023,4337.0,4336.9,0.2135]
[1756871510176,1.45135866,4337.0,4336.9,0.2135]
[1756871510579,1.45135866,4337.0,4336.9,0.4261]
[1756871510778,1.45135866,4337.0,4336.9,0.7304]
[1756871510979,1.45135866,4337.0,4336.9,1.82244048]
[1756871511174,0.60815866,4337.0,4336.9,1.82244048]
[1756871511576,0.60815866,4337.1,4336.9,1.82244048]
[1756871511783,0.60815866,4337.0,4336.9,1.82244048]
[1756871512080,0.3172,4337.1,4337.0,0.7304]
[1756871512282,0.92615148,4337.1,4337.0,0.7304]
[1756871512486,1.33295148,4337.1,4337.0,0.4261]
[1756871513583,1.33295148,4337.1,4337.0,0.7304]
[1756871514482,1.33295148,4337.1,4337.0,0.4261]
[1756871515883,0.4364,4337.0,4336.9,1.09204048]
[1756871516079,0.4068,4336.7,4336.6,1.53854048]
[1756871516281,1.33295148,4336.7,4336.6,1.75114048]
[1756871516482,1.33295148,4336.7,4336.6,2.05544048]
[1756871516782,1.12845148,4336.7,4336.6,2.05544048]
[1756871516985,0.60895148,4336.7,4336.6,2.05544048]
[1756871517482,0.92615148,4336.7,4336.6,2.05544048]
[1756871517787,1.12652113,4336.7,4336.6,2.05544048]
[1756871519481,0.60702113,4336.7,4336.6,2.05544048]
[1756871519881,1.12652113,4336.7,4336.6,2.05544048]
[1756871520382,1.33102113,4336.7,4336.6,1.51814048]
[1756871520590,0.8432,4336.5,4336.4,1.30554048]
[1756871520785,1.45022113,4336.5,4336.4,1.30554048]
[1756871520981,1.45022113,4336.5,4336.4,1.51814048]
[1756871521381,1.45022113,4336.5,4336.4,1.30554048]
[1756871523087,1.45022113,4336.5,4336.4,1.82244048]
[1756871523488,1.45022113,4336.5,4336.4,2.05544048]
[1756871524091,1.24572113,4336.5,4336.4,2.05544048]
[1756871524587,1.12652113,4336.5,4336.4,2.05544048]
[1756871524983,1.24572113,4336.5,4336.4,2.05544048]
[1756871525986,0.92422113,4336.5,4336.4,2.05544048]
[1756871526187,1.12652113,4336.5,4336.4,2.05544048]
[1756871526387,1.45022113,4336.5,4336.4,1.75114048]
[1756871526587,0.92422113,4336.5,4336.4,2.05544048]
[1756871528389,1.45022113,4336.5,4336.4,1.75114048]
[1756871528590,1.45022113,4336.5,4336.4,2.05544048]
[1756871528995,1.45022113,4336.5,4336.4,1.75114048]
[1756871529197,0.8432,4336.5,4336.4,1.75114048]
[1756871529393,0.1192,4337.0,4336.4,2.05544048]
[1756871529597,1.12713445,4336.9,4336.8,0.7304]
[1756871529792,1.33163445,4336.9,4336.8,1.51814048]
[1756871531896,1.01443445,4336.9,4336.7,0.233]
[1756871532092,1.32063445,4336.8,4336.7,0.1971]
[1756871533106,0.713,4336.7,4336.6,1.32504048]
[1756871533397,1.32063445,4336.7,4336.6,1.52214048]
[1756871533793,1.32063445,4336.7,4336.6,1.28914048]
[1756871535202,1.32063445,4336.7,4336.6,1.32504048]
[1756871535910,1.32063445,4336.7,4336.6,1.52214048]
[1756871536409,1.32063445,4336.7,4336.6,2.02924048]
[1756871536892,1.32063445,4336.7,4336.6,1.73484048]
[1756871537095,1.32063445,4336.7,4336.6,1.52214048]
[1756871537296,1.32063445,4336.7,4336.6,1.32504048]
[1756871537495,1.32063445,4336.7,4336.6,1.09204048]
[1756871538902,1.32063445,4336.7,4336.3,1.32504048]
[1756871538903,0.713,4336.4,4336.3,1.32504048]
[1756871539697,0.713,4336.4,4336.3,1.52214048]
[1756871540099,0.311,4336.9,4336.3,1.73484048]
[1756871540298,1.11382765,4336.8,4336.7,0.7042]
[1756871540803,1.32012765,4336.8,4336.7,0.4098]
[1756871541401,0.60712765,4336.8,4336.7,2.02924048]
[1756871541709,0.713,4337.4,4337.3,0.4098]
[1756871542005,1.32025172,4337.4,4337.3,0.4098]
[1756871542207,1.32025172,4337.4,4337.3,1.79624048]
[1756871542706,1.32025172,4337.4,4337.3,0.7042]
[1756871543003,1.32025172,4337.4,4337.3,1.79624048]
[1756871544699,0.713,4337.4,4337.3,1.79624048]
[1756871545000,0.5067,4337.4,4337.3,1.79624048]
[1756871545200,0.713,4337.4,4337.3,1.50184048]
[1756871545404,0.713,4337.4,4337.0,0.2944]
[1756871545405,0.6437,4337.0,4336.9,0.1971]
[1756871545604,0.8394,4337.0,4336.9,1.52214048]
[1756871545803,0.8394,4337.0,4336.9,1.28914048]
[1756871546107,0.8394,4337.0,4336.9,42.32214048]
[1756871546296,0.311,4337.0,4336.9,42.61654048]
[1756871546494,0.713,4337.4,4337.3,0.4098]
[1756871546697,0.402,4337.4,4337.2,1.09204048]
[1756871547005,0.713,4337.3,4337.2,1.50184048]
[1756871547201,0.713,4337.3,4337.2,1.79624048]
[1756871547598,0.713,4337.3,4337.2,1.50184048]
[1756871548304,0.713,4337.3,4337.2,0.4098]
[1756871548606,0.311,4337.2,4337.1,1.09204048]
[1756871548801,0.311,4337.2,4337.1,1.79624048]
[1756871549210,0.5067,4337.2,4337.1,1.79624048]
[1756871549912,0.5067,4337.2,4337.1,1.50184048]
[1756871549913,0.713,4337.2,4337.1,1.50184048]
[1756871550296,0.713,4337.2,4337.1,1.79624048]
[1756871550501,0.613,4337.2,4337.1,1.79624048]
[1756871550901,0.233,4337.9,4337.2,0.2944]
[1756871551107,1.23914564,4337.8,4337.7,0.1971]
[1756871551308,1.00859564,4337.8,4337.7,0.1971]
[1756871552808,1.31959564,4337.8,4337.7,0.1971]
[1756871553304,1.31959564,4337.8,4337.7,1.28914048]
[1756871553505,0.713,4337.8,4337.7,1.28914048]
[1756871556015,0.1264,4337.5,4337.4,1.09204048]
[1756871556210,0.8394,4337.5,4337.4,1.28914048]
[1756871556412,0.5284,4337.5,4337.2,1.09204048]
[1756871556714,0.713,4337.3,4337.2,1.09204048]
[1756871557416,0.713,4337.3,4337.2,1.28914048]
[1756871558618,0.713,4337.3,4337.2,1.50184048]
[1756871558816,0.713,4337.3,4337.2,1.79624048]
[1756871561918,0.4,4336.9,4336.8,5.568]
[1756871562107,0.7094,4336.9,4336.8,5.7672]
[1756871563216,0.7094,4336.9,4336.8,5.9622]
[1756871563516,0.7094,4336.9,4336.8,6.2779]
[1756871564637,0.7094,4336.9,4336.8,0.9429]
[1756871565117,0.7094,4336.9,4336.8,0.7099]
[1756871569426,0.7094,4336.9,4336.8,2.04352559]
[1756871572825,0.3094,4336.9,4336.8,2.04352559]
[1756871573124,0.511,4336.9,4336.8,2.04352559]
[1756871574228,0.7094,4336.9,4336.8,0.3942]
[1756871574520,0.7094,4336.9,4336.8,0.7099]
[1756871574721,0.7094,4336.9,4336.8,0.4322]
[1756871574915,0.7094,4336.9,4336.8,0.6272]
[1756871575427,0.7094,4336.9,4336.8,0.7099]
[1756871575727,0.7094,4336.9,4336.8,0.9429]
[1756871576325,0.3094,4336.9,4336.8,0.9429]
[1756871577127,0.511,4336.9,4336.8,0.9429]
[1756871577926,0.7094,4336.9,4336.8,0.9429]
[1756871578125,0.7094,4336.9,4336.8,0.3942]
[1756871578527,0.3094,4337.4,4337.3,0.3942]
[1756871578728,0.60667635,4337.4,4337.3,2.27652559]
[1756871581027,0.60671577,4337.4,4337.3,1.96082559]
[1756871581229,0.60671577,4337.9,4337.3,1.96082559]
[1756871581532,0.8358,4338.5,4338.4,0.1342]
[1756871582033,0.6374,4338.5,4338.4,1.60202559]
[1756871582331,0.8358,4338.5,4338.4,1.60202559]
[1756871583836,0.8358,4338.5,4338.4,1.83502559]
[1756871584235,0.4358,4338.5,4338.4,1.91892559]
[1756871584534,0.6374,4338.5,4338.4,1.83502559]
[1756871586428,0.4358,4338.5,4338.4,1.91892559]
[1756871589136,0.4358,4338.5,4338.4,1.83502559]
[1756871589137,0.6374,4338.5,4338.4,1.83502559]
[1756871589337,0.8358,4338.5,4338.4,1.83502559]
[1756871589537,0.8358,4338.5,4338.4,1.60202559]
[1756871589846,0.8358,4338.5,4338.4,1.46782559]
[1756871590035,0.5264,4338.5,4338.3,0.233]
[1756871590234,0.7094,4338.4,4338.3,0.503]
[1756871590836,0.7094,4338.4,4338.3,0.135]
[1756871591036,0.5274,4338.0,4337.9,40.8]
[1756871591236,0.8368,4338.0,4337.9,41.033]
[1756871591740,0.8368,4338.0,4337.7,0.233]
[1756871593237,0.5104,4337.9,4337.8,0.2696]
[1756871593439,0.7055,4337.9,4337.8,0.2696]
[1756871593834,0.5104,4337.9,4337.8,0.2696]
[1756871594041,0.3075,4337.9,4337.8,0.3538]
[1756871594434,0.5104,4337.9,4337.8,0.3538]
[1756871594639,0.5104,4337.9,4337.8,0.2696]
[1756871595041,0.5104,4337.9,4337.8,0.3538]
[1756871596435,0.3075,4337.9,4337.8,0.3538]
[1756871596636,0.7055,4338.3,4338.2,0.1348]
[1756871596833,0.7055,4338.3,4338.2,1.60322559]
[1756871597041,0.5104,4338.3,4338.2,1.68742559]
[1756871597242,0.7055,4338.3,4338.2,1.60322559]
[1756871597439,0.118,4338.0,4337.8,1.33362559]
[1756871597643,0.8235,4338.0,4337.6,4.54142559]
[1756871597844,0.8235,4338.0,4337.9,0.233]
[1756871598639,0.516,4338.0,4337.6,4.54142559]
[1756871598938,0.398,4337.8,4337.6,3.2078]
[1756871599136,0.7055,4337.7,4337.6,3.2078]
[1756871599343,0.7055,4337.7,4337.6,3.4408]
[1756871600243,0.7055,4337.7,4337.6,3.7104]
[1756871601034,0.5104,4337.7,4337.6,3.7946]
[1756871601337,0.5104,4337.7,4337.6,3.7104]
[1756871601942,0.3075,4337.7,4337.6,3.7946]
[1756871602642,0.3075,4337.9,4337.8,0.3538]
[1756871602844,0.7055,4337.9,4337.8,1.83622559]
[1756871603240,0.7055,4337.9,4336.6,0.18241534]
[1756871603241,0.7055,4336.7,4336.6,3.2078]
[1756871603443,0.7055,4336.7,4336.6,4.67622559]
[1756871603746,0.7055,4336.7,4336.6,4.81102559]
[1756871604337,0.7055,4336.7,4336.6,3.3426]
[1756871604544,0.7055,4336.7,4336.6,3.4408]
[1756871604741,0.7055,4336.7,4336.6,3.5756]
[1756871605044,0.7055,4336.7,4336.6,4.90922559]
[1756871606046,0.7055,4336.7,4335.5,2.15159492]
[1756871606047,0.118,4336.5,4336.1,3.2078]
[1756871606342,0.7055,4336.2,4336.1,3.3426]
[1756871606538,0.398,4336.2,4335.8,1.33362559]
[1756871606744,0.398,4335.7,4335.6,4.67622559]
[1756871606946,0.7055,4335.7,4335.6,4.91022559]
[1756871607140,0.7055,4335.7,4335.6,5.04502559]
[1756871607536,0.7055,4335.7,4335.6,4.81102559]
[1756871607746,0.7055,4335.7,4335.6,5.04502559]
[1756871608248,0.5104,4335.7,4335.6,5.04502559]
[1756871608443,0.3075,4335.7,4335.6,5.12922559]
[1756871611244,0.3075,4335.7,4335.6,4.89522559]
[1756871611442,0.7055,4335.7,4335.6,5.04502559]
[1756871611637,0.5104,4335.7,4335.6,5.04502559]
[1756871612543,0.3075,4335.7,4335.6,5.12922559]
[1756871612945,0.5104,4335.7,4335.6,5.04502559]
[1756871613141,0.3075,4335.7,4335.6,5.12922559]
[1756871613849,0.3075,4335.7,4335.6,4.89522559]
[1756871614049,0.3075,4335.7,4335.6,5.12922559]
[1756871615054,0.7055,4335.7,4335.6,4.81102559]
[1756871615256,0.7055,4335.7,4335.6,5.04502559]
[1756871615457,0.5104,4335.7,4335.6,5.04502559]
[1756871616456,0.3075,4335.7,4335.6,5.12922559]
[1756871619164,0.5104,4335.7,4335.6,5.12922559]
[1756871619363,0.7055,4335.7,4335.6,5.04502559]
[1756871619558,0.7055,4335.7,4335.6,4.81102559]
[1756871619765,0.7055,4335.7,4335.6,5.04402559]
[1756871619966,0.7055,4335.7,4335.6,3.3426]
[1756871620164,0.7055,4335.7,4335.6,3.4408]
[1756871620462,0.3075,4335.7,4335.6,5.12822559]
[1756871620864,0.5104,4335.7,4335.6,5.04402559]
[1756871622668,0.3075,4335.7,4335.6,5.12782559]
[1756871622864,0.3176,4336.0,4335.9,0.268]
[1756871623254,0.5232,4336.0,4335.9,0.268]
[1756871623458,0.4068,4336.0,4335.9,0.3518]
[1756871623663,0.6064,4336.0,4335.9,0.268]
[1756871623860,0.812,4336.0,4335.9,0.268]
[1756871626765,0.6064,4336.0,4335.9,0.268]
[1756871628166,0.4068,4336.0,4335.9,0.3518]
[1756871629268,0.4068,4336.5,4336.4,0.268]
[1756871629573,0.4068,4336.5,4336.4,1.67672239]
[1756871629774,0.118,4337.0,4336.4,1.59292239]
[1756871629984,0.4884,4336.9,4336.8,0.268]
[1756871630272,0.694,4336.9,4336.8,0.268]
[1756871630973,0.2888,4336.8,4336.7,1.32492239]
[1756871631175,0.694,4336.8,4336.7,1.32492239]
[1756871632874,0.694,4336.8,4336.7,1.09192239]
[1756871634880,0.694,4336.8,4336.7,1.35992239]
[1756871638183,0.694,4336.8,4336.7,1.09192239]
[1756871639579,0.694,4336.8,4336.7,1.22592239]
[1756871639972,0.694,4336.8,4336.7,0.134]
[1756871641785,0.694,4336.8,4336.7,0.268]
[1756871642780,0.2888,4337.2,4337.1,0.268]
[1756871642985,0.2888,4337.2,4337.1,1.67672239]
[1756871643478,0.2888,4337.2,4337.1,1.85689247]
[1756871643678,0.2888,4337.2,4337.1,1.67672239]
[1756871644079,0.118,4337.5,4337.1,1.59292239]
[1756871644379,0.118,4337.5,4337.4,1.44372239]
[1756871644577,0.3176,4337.5,4337.4,1.59292239]
[1756871644776,0.6064,4337.5,4337.4,1.59292239]
[1756871645177,0.812,4337.5,4337.4,1.59292239]
[1756871645780,0.4068,4337.5,4337.4,1.67672239]
[1756871646380,0.6064,4337.5,4337.4,1.67672239]
[1756871646585,0.4068,4337.5,4337.4,1.67672239]
[1756871646785,0.2888,4337.5,4337.4,1.67672239]
[1756871647284,0.4146,4337.5,4337.4,0.5848]
[1756871648183,0.2888,4337.5,4337.4,41.3848]
[1756871648385,0.4146,4338.0,4337.9,0.268]
[1756871648582,0.4146,4338.0,4337.9,1.59292239]
[1756871648884,0.4146,4338.0,4337.9,1.67672239]
[1756871649384,0.2888,4338.0,4337.9,1.67672239]
[1756871649779,0.4884,4338.4,4338.0,0.0838]
[1756871650086,0.4884,4338.4,4338.3,1.35992239]
[1756871650285,0.694,4338.4,4338.3,1.59292239]
[1756871651279,0.694,4338.4,4338.3,1.45892239]
[1756871651679,0.694,4338.4,4338.3,1.22592239]
[1756871651880,0.694,4338.4,4338.3,1.45892239]
[1756871654286,0.2888,4338.4,4338.3,1.59372239]
[1756871654485,0.2888,4338.4,4338.3,1.67802239]
[1756871655893,0.2888,4338.4,4338.3,4.88582239]
[1756871656786,0.6799,4338.4,4338.3,4.80152239]
[1756871657391,0.4833,4338.4,4338.3,4.80152239]
[1756871657686,0.6799,4338.4,4338.3,4.56852239]
[1756871657888,0.6799,4338.4,4338.3,4.43372239]
[1756871658186,0.2888,4338.4,4338.3,4.80162239]
[1756871658392,0.2888,4338.4,4338.3,4.88592239]
[1756871658690,0.4833,4338.4,4338.3,4.80162239]
[1756871659191,0.4833,4338.4,4338.3,4.88592239]
[1756871659392,0.2888,4338.4,4338.3,4.88592239]
[1756871659985,0.2888,4338.4,4338.3,4.80162239]
[1756871660189,0.2888,4338.4,4338.3,4.88592239]
[1756871661693,0.6799,4338.4,4338.3,3.4767]
[1756871661894,0.6799,4338.4,4338.3,4.80162239]
[1756871662290,0.6799,4338.4,4338.3,3.7097]
[1756871662491,0.6799,4338.4,4338.3,4.80162239]
[1756871665193,0.6799,4338.4,4338.3,4.66672239]
[1756871665386,0.6799,4338.4,4338.3,3.5757]
[1756871665596,0.6799,4338.4,4338.3,3.7106]
[1756871667286,0.6799,4338.4,4338.3,3.4776]
[1756871667606,0.6799,4338.4,4338.3,3.7106]
[1756871669501,0.6799,4338.4,4338.3,3.5757]
[1756871669703,0.6799,4338.4,4338.3,4.66762239]
[1756871670300,0.6799,4338.4,4338.3,4.80252239]
[1756871670805,0.6799,4338.4,4338.3,4.66762239]
[1756871670996,0.6799,4338.4,4338.3,4.80252239]
[1756871671390,0.4833,4338.4,4338.3,4.80252239]
[1756871672101,0.4833,4338.4,4338.3,4.88682239]
[1756871672697,0.2888,4338.4,4338.3,4.88682239]
[1756871674604,0.4833,4338.4,4338.3,4.80252239]
[1756871675905,0.6799,4338.4,4338.3,3.5757]
[1756871676404,0.6799,4338.4,4338.3,3.3427]
[1756871676706,0.6799,4338.4,4338.3,3.5757]
[1756871677698,0.6799,4338.4,4338.3,4.43462239]
[1756871677898,0.6799,4338.4,4337.4,4.56952239]
[1756871677899,0.8085,4337.5,4337.4,4.56952239]
[1756871678206,0.4174,4337.5,4337.4,4.88682239]
[1756871678413,0.294,4337.5,4337.4,45.68682239]
[1756871680707,0.4174,4337.5,4337.4,44.2776]
[1756871680905,0.4174,4337.5,4337.4,44.5949]
[1756871681101,0.1234,4338.0,4337.4,44.5949]
[1756871681302,0.832,4338.0,4337.9,1.36172239]
[1756871681502,0.832,4338.0,4337.9,1.59472239]
[1756871682001,0.4409,4338.0,4337.9,1.67872239]
[1756871682201,0.1258,4338.5,4338.3,0.2688]
[1756871682405,0.92178325,4338.4,4338.3,0.5018]
[1756871682810,1.12038325,4338.4,4338.3,0.5018]
[1756871683611,1.12038325,4338.4,4338.3,1.59372239]
[1756871685309,1.31468325,4338.4,4338.3,1.32492239]
[1756871685508,1.31468325,4338.4,4338.3,1.45932239]
[1756871686011,0.8379,4338.0,4337.9,3.2078]
[1756871686208,0.8379,4338.0,4337.9,3.4408]
[1756871686407,0.8379,4338.0,4337.9,3.5752]
[1756871687311,0.8379,4338.0,4337.9,0.1344]
[1756871687498,0.8379,4338.0,4337.9,0.3674]
[1756871687699,0.8379,4338.0,4337.9,0.1344]
[1756871687903,0.8379,4338.0,4337.9,0.3674]
[1756871688211,0.8379,4338.0,4337.9,0.1344]
[1756871688510,0.8379,4338.0,4337.9,0.3674]
[1756871689708,0.8379,4338.0,4337.9,0.5018]
[1756871689909,0.445,4338.0,4337.9,0.5858]
[1756871691510,0.445,4338.0,4337.9,1.91870813]
[1756871692009,0.6436,4338.0,4337.9,1.83470813]
[1756871692713,0.6436,4338.0,4337.9,1.91870813]
[1756871694010,0.445,4338.0,4337.9,1.91870813]
[1756871694211,0.3175,4338.0,4337.9,1.91870813]
[1756871695009,0.445,4338.0,4337.9,1.83470813]
[1756871695217,0.8379,4338.0,4337.9,1.83470813]
[1756871695412,0.8379,4338.0,4337.9,1.60170813]
[1756871695612,0.8379,4338.0,4337.9,1.83470813]
[1756871698015,0.8379,4338.0,4337.9,1.60170813]